[Event "Romanian Superliga 2024"]
[Site "Mamaia"]
[Date "2024.09.30"]
[Round "3.16"]
[White "Gavrilescu, David"]
[Black "Cioara, Andrei-Nestor"]
[Result "1-0"]
[ECO "B12"]
[WhiteElo "2547"]
[BlackElo "2402"]
[Annotator "RC"]
[PlyCount "111"]
[EventDate "2024.09.26"]
[EventType "team-tourn"]
[EventCountry "ROU"]
[SourceTitle "playchess.com"]
[Source "ChessBase"]
[SourceQuality "1"]
[TimeControl "40/5400+30:1800+30"]

1. e4 {[%emt 0:00:14]} c6 {[%emt 0:00:05]} 2. d4 {[%emt 0:00:28]} d5 {[%emt 0:00:04]} 3. e5 {[%emt 0:00:49]} Bf5 {[%emt 0:00:34]} 4. h4 {[%emt 0:00:49]} h6 {[%emt 0:00:14]} 5. Bd3 {[%emt 0:01:27]} Bxd3 {[%emt 0:00:39]} 6. cxd3 {[%emt 0:00:43]} e6 {[%emt 0:00:16]} 7. Nc3 {[%emt 0:00:06]} Nd7 {[%emt 0:08:13]} 8. h5 {[%emt 0:04:12]} c5 {[%emt 0:01:53]} 9. dxc5 {[%emt 0:00:48]} d4 {[%emt 0:15:43]} 10. Ne4 {[%emt 0:00:14]} Nxc5 {[%emt 0:01:14]} 11. Nxc5 {[%emt 0:11:18]} Bxc5 {[%emt 0:00:03]} 12. Qg4 {[%emt 0:02:50]} Ne7 {[%emt 0:05:11]} 13. Nf3 {[%emt 0:04:32]} Qd5 {[%emt 0:08:27]} 14. O-O {[%emt 0:07:10]} g6 {[%emt 0:17:08]} 15. hxg6 {[%emt 0:06:50]} Nxg6 {[%emt 0:01:00]} 16. Re1 {[%emt 0:00:18]} O-O-O {[%emt 0:00:13]} 17. Bd2 {[%emt 0:05:09]} Kb8 {[%emt 0:00:21]} 18. a4 {[%emt 0:09:00]} a6 {[%emt 0:16:52]} 19. Rac1 {[%emt 0:06:45]} Ne7 {[%emt 0:02:55]} 20. Qe4 {[%emt 0:07:23]} Nc6 {[%emt 0:00:35]} 21. Qxd5 {[%emt 0:03:47]} Rxd5 {[%emt 0:00:05]} 22. Re4 {[%emt 0:00:08]} Bb6 {[%emt 0:07:52]} 23. g3 {[%emt 0:05:36]} Bc7 {[%emt 0:00:52]} 24. Rce1 {[%emt 0:00:05]} Kc8 {[%emt 0:02:21]} 25. Kf1 {[%emt 0:02:21]} Kd7 {[%emt 0:03:53]} 26. Bf4 {[%emt 0:01:00]} Rb8 {[%emt 0:04:46]} 27. Bxh6 {[%emt 0:02:26]} b5 {[%emt 0:00:01]} 28. axb5 {[%emt 0:04:51]} Rbxb5 {[%emt 0:00:02]} 29. Rf4 {[%emt 0:00:10]} f5 {[%emt 0:02:15]} 30. exf6 {[%emt 0:01:56]} Bxf4 {[%emt 0:00:12]} 31. gxf4 {[%emt 0:00:05]} Rf5 {[%emt 0:00:51]} 32. Bg5 {[%emt 0:00:01]} Rxb2 {[%emt 0:00:23]} 33. Nh4 {[%emt 0:00:59]} Rbb5 {[%emt 0:00:44]} 34. Nxf5 {[%emt 0:00:58]} Rxf5 {[%emt 0:00:02]} 35. Kg2 {[%emt 0:00:10]} Nb4 {[%emt 0:01:11]} 36. Re4 {[%emt 0:00:48]} Nc6 {[%emt 0:00:35]} 37. Kf3 {[%emt 0:00:52]} a5 {[%emt 0:00:01]} 38. Re2 {[%emt 0:00:09]} Nb4 {[%emt 0:00:55]} 39. Re4 {[%emt 0:04:56]} Nc6 {[%emt 0:00:01]} 40. Kg4 {[%emt 0:00:00]} a4 {[%emt 0:00:00]} 41. Kh5 {[%emt 0:01:04]} a3 {[%emt 0:04:55]} 42. Kg6 {[%emt 0:01:38]} a2 {[%emt 0:08:26]} 43. Re1 {[%emt 0:00:49]} Nb4 {[%emt 0:01:26]} 44. Ra1 {[%emt 0:03:09]} Nxd3 {[%emt 0:00:27]} 45. Rxa2 {[%emt 0:02:38]} Nxf4+ {[%emt 0:00:06]} 46. Bxf4 {[%emt 0:09:47]} Rxf4 {[%emt 0:00:02]} 47. Kg7 {[%emt 0:00:28]} Rg4+ {[%emt 0:07:19]} 48. Kf8 {[%emt 0:04:47]} e5 {[%emt 0:00:57]} 49. f7 {[%emt 0:00:48]} Rf4 {[%emt 0:01:08]} 50. Ra7+ {[%emt 0:02:00]} Ke6 {[%emt 0:03:53]} 51. Ra6+ {[%emt 0:00:07]} Kd7 {[%emt 0:06:41]} 52. Kg7 {[%emt 0:00:54]} Ke7 {[%emt 0:00:11]} 53. Ra7+ {[%emt 0:01:37]} Ke6 {[%emt 0:00:01]} 54. f8=Q {[%emt 0:00:17]} Rxf8 {[%emt 0:00:04]} 55. Kxf8 {[%emt 0:00:06]} e4 {[%emt 0:00:15]} 56. Ra5 {[%emt 0:00:38]} 1-0

[Event "Romanian Superliga 2024"]
[Site "Mamaia"]
[Date "2024.09.30"]
[Round "3.17"]
[White "Vajda, Albert"]
[Black "Jianu, Vlad-Cristian"]
[Result "0-1"]
[ECO "B12"]
[WhiteElo "2279"]
[BlackElo "2478"]
[Annotator "TA"]
[PlyCount "60"]
[EventDate "2024.09.26"]
[EventType "team-tourn"]
[EventCountry "ROU"]
[SourceTitle "playchess.com"]
[Source "ChessBase"]
[SourceQuality "1"]
[TimeControl "40/5400+30:1800+30"]

{[%evp 9,60,0,23,7,25,0,25,27,56,49,72,74,56,52,58,55,64,66,75,73,78,69,77,57,72,34,91,22,13,-26,-19,-96,-79,-83,-88,-93,-99,-144,-162,-212,-218,-214,-218,-209,-215,-220,-233,-229,-229,-291,0,-342,-326]} 1. e4 {[%emt 0:00:04]} c6 {[%emt 0:00:06]} 2. d4 {[%emt 0:00:20]} d5 {[%emt 0:00:07]} 3. e5 {[%emt 0:00:13]} c5 {[%emt 0:00:06]} 4. dxc5 {[%emt 0:00:16]} e6 {[%emt 0:00:07]} 5. c3 {[%emt 0:02:23]} Bxc5 {[%emt 0:03:42]} 6. Qg4 {[%emt 0:02:36]} g6 {[%emt 0:00:36]} 7. h4 {[%emt 0:04:37]} h5 {[%emt 0:05:18]} 8. Qg3 {[%emt 0:07:55] White has an edge.} Nc6 {[%emt 0:00:19]} 9. Bd3 {[%emt 0:04:03]} Nh6 {[%emt 0:04:33]} 10. Bxh6 {[%emt 0:06:17]} Rxh6 {[%emt 0:00:06]} 11. Nd2 {[%emt 0:00:50]} Bd7 {[%emt 0:12:46]} 12. Ngf3 {[%emt 0:01:50]} Qe7 {[%emt 0:03:25]} 13. O-O {[%emt 0:09:04]} Bb6 {[%emt 0:08:37]} 14. Qf4 {[%emt 0:04:25]} Rh7 {[%emt 0:10:54]} 15. c4 {[%emt 0:06:35]} O-O-O {[%emt 0:02:52]} 16. Rac1 {[%emt 0:04:02]} Bc7 {[%emt 0:01:59]} 17. a3 {[%emt 0:06:34]} Rf8 {[%emt 0:08:51]} (17... f6 $14) 18. cxd5 {[%emt 0:01:50]} ({White should play} 18. b4 $16 {Hoping for b5.} f6 19. exf6 (19. Bxg6 $2 Rg7 $19) 19... Qxf6 20. Qxf6 Rxf6 21. Rfe1) 18... exd5 $11 {[%emt 0:00:06]} 19. Bb5 {[%emt 0:01:34]} f6 {[%emt 0:03:13][%cal Rf6e5]} 20. Qa4 {[%emt 0:02:16]} (20. Qe3 $11 fxe5 (20... Nxe5 $2 21. Bxd7+ Kxd7 22. Qxa7 $18) 21. Ng5) 20... fxe5 $17 {[%emt 0:03:00]} (20... Nxe5 $2 {is the wrong capture.} 21. Bxd7+ Nxd7 22. Qxa7 $18 (22. Rfe1 Qd6 $16)) 21. Ng5 {[%emt 0:05:26][%cal Rb5c6] And now Bxc6! would win.} Rf4 $1 {[%emt 0:04:05]} 22. b4 {[%emt 0:00:20][%cal Rb5c6] [#]} Nd4 {[%emt 0:02:43]} 23. Bxd7+ {[%emt 0:05:40]} (23. Qxa7 Bxb5) 23... Qxd7 {[%emt 0:00:52]} 24. Qd1 {[%emt 0:00:57] [#] Prevents Ne2+.} (24. Qxd7+ $142 Rxd7 25. Rfe1) 24... Re7 $1 $19 {[%emt 0:06:05][%cal Oe5e4]} 25. g3 {[%emt 0:00:22]} Rf5 {[%emt 0:05:50]} 26. Nb3 {[%emt 0:02:34]} Nxb3 {[%emt 0:00:16]} 27. Qxb3 {[%emt 0:00:06]} e4 {[%emt 0:02:04]} 28. Rc2 {[%emt 0:04:03]} Kb8 {[%emt 0:02:17][%cal Oe4e3]} 29. Rfc1 {[%emt 0:01:44]} Qd6 {[%emt 0:02:05]} (29... Bb6 $19 {...e3 would now be deadly.} 30. Re1 Rf8) 30. Rc3 {[%emt 0:02:03][%mdl 8192]} (30. Nxe4 $1 $11 {and White stays safe.} Rxe4 (30... dxe4 31. Qg8+) 31. Rxc7 Qxc7 32. Rxc7 Re1+ (32... Kxc7 33. Qc3+ Kd8 34. Qc5 $11) 33. Kg2) 30... a6 {[%emt 0:08:30] Weighted Error Value: White=0.34/Black=0.23 (precise) .  Loses game:     	White=1     	---        Missed win:     	---       	Black=1      Mistake:       	White=3     	Black=1      Inaccurate:     	White=3     	Black=1      OK:         	White=6     	Black=9      Best:        	---       	Black=2      Strong:       	---       	Black=1} 0-1

[Event "Romanian Superliga 2024"]
[Site "Mamaia"]
[Date "2024.09.30"]
[Round "3.18"]
[White "Tudor, Henry Edward"]
[Black "Corbu, George-Alexandru"]
[Result "1-0"]
[ECO "E51"]
[WhiteElo "2347"]
[BlackElo "2039"]
[Annotator "RC"]
[PlyCount "91"]
[EventDate "2024.09.26"]
[EventType "team-tourn"]
[EventCountry "ROU"]
[SourceTitle "playchess.com"]
[Source "ChessBase"]
[SourceQuality "1"]
[TimeControl "40/5400+30:1800+30"]

1. d4 {[%emt 0:00:03]} Nf6 {[%emt 0:00:19]} 2. c4 {[%emt 0:00:11]} e6 {[%emt 0:00:08]} 3. Nc3 {[%emt 0:00:07]} Bb4 {[%emt 0:00:31]} 4. e3 {[%emt 0:02:01]} O-O {[%emt 0:00:13]} 5. Bd2 {[%emt 0:01:46]} d5 {[%emt 0:00:48]} 6. Nf3 {[%emt 0:00:12]} c5 {[%emt 0:00:39]} 7. a3 {[%emt 0:06:49]} Bxc3 {[%emt 0:00:55]} 8. Bxc3 {[%emt 0:01:09]} cxd4 {[%emt 0:02:33]} 9. Nxd4 {[%emt 0:04:54]} Ne4 {[%emt 1:28:54]} 10. Rc1 {[%emt 0:03:39]} Re8 {[%emt 0:00:00]} 11. cxd5 {[%emt 0:17:12]} exd5 {[%emt 0:00:00]} 12. Be2 {[%emt 0:01:10]} Nc6 {[%emt 0:00:00]} 13. O-O {[%emt 0:02:47]} a6 {[%emt 0:00:00]} 14. Nxc6 {[%emt 0:12:38]} bxc6 {[%emt 0:00:00]} 15. Bd4 {[%emt 0:00:07]} Qd6 {[%emt 0:00:00]} 16. Qc2 {[%emt 0:03:00]} Bd7 {[%emt 0:00:00]} 17. Rfd1 {[%emt 0:03:09]} Qh6 {[%emt 0:00:00]} 18. f3 {[%emt 0:06:29]} Ng5 {[%emt 0:00:00]} 19. Qd2 {[%emt 0:01:18]} Qg6 {[%emt 0:00:00]} 20. Kh1 {[%emt 0:03:27]} f5 {[%emt 0:00:00]} 21. b4 {[%emt 0:02:01]} Ne6 {[%emt 0:00:00]} 22. Ba1 {[%emt 0:01:32]} Red8 {[%emt 0:00:00]} 23. Bd3 {[%emt 0:04:03]} Qf7 {[%emt 0:00:00]} 24. Qc2 {[%emt 0:05:03]} Nf8 {[%emt 0:00:00]} 25. e4 {[%emt 0:03:49]} f4 {[%emt 0:00:00]} 26. Qc5 {[%emt 0:01:15]} Rdc8 {[%emt 0:00:00]} 27. Qa5 {[%emt 0:01:29]} Ng6 {[%emt 0:02:09]} 28. Re1 {[%emt 0:06:37]} Be6 {[%emt 0:01:21]} 29. Bxa6 {[%emt 0:03:58]} Rd8 {[%emt 0:02:45]} 30. exd5 {[%emt 0:02:27]} Bxd5 {[%emt 0:00:17]} 31. b5 {[%emt 0:00:40]} cxb5 {[%emt 0:01:09]} 32. Qxb5 {[%emt 0:00:04]} Nh4 {[%emt 0:00:25]} 33. Qf1 {[%emt 0:01:07]} Re8 {[%emt 0:01:27]} 34. Rxe8+ {[%emt 0:00:44]} Rxe8 {[%emt 0:00:01]} 35. Bb5 {[%emt 0:00:15]} Rb8 {[%emt 0:01:35]} 36. a4 {[%emt 0:00:18]} Ra8 {[%emt 0:00:34]} 37. Qf2 {[%emt 0:00:41]} Nf5 {[%emt 0:00:14]} 38. Be5 {[%emt 0:00:26]} Qe7 {[%emt 0:00:48]} 39. Bxf4 {[%emt 0:00:17]} Qb4 {[%emt 0:01:01]} 40. Be5 {[%emt 0:00:00]} Qb3 {[%emt 0:00:00]} 41. h3 {[%emt 0:05:41]} Rf8 {[%emt 0:05:53]} 42. Kh2 {[%emt 0:01:33]} h5 {[%emt 0:02:09]} 43. Qd2 {[%emt 0:02:24]} Ne3 {[%emt 0:02:44]} 44. Bxg7 {[%emt 0:03:56]} Kxg7 {[%emt 0:00:40]} 45. Rc3 {[%emt 0:00:05]} Qxb5 {[%emt 0:00:12]} 46. Qd4+ {[%emt 0:00:02]} 1-0

[Event "Romanian Superliga 2024"]
[Site "Mamaia"]
[Date "2024.09.30"]
[Round "3.19"]
[White "Lashkin, Jegor"]
[Black "Petkov, Momchil"]
[Result "1/2-1/2"]
[ECO "E94"]
[WhiteElo "2472"]
[BlackElo "2540"]
[Annotator "TA"]
[PlyCount "104"]
[EventDate "2024.09.26"]
[EventType "team-tourn"]
[EventCountry "ROU"]
[SourceTitle "playchess.com"]
[Source "ChessBase"]
[SourceQuality "1"]
[TimeControl "40/5400+30:1800+30"]

{[%evp 32,104,24,26,8,0,0,0,4,0,16,0,0,0,0,4,8,16,4,0,0,0,0,0,0,-162,-149,-158,-70,-229,-229,-248,-243,-207,-222,-278,-125,-116,-118,-300,-301,-301,-301,-332,-332,-340,-95,-95,-95,-82,-33,-98,-42,-41,0,0,0,0,0,0,0,0,0,0,0,0,0,0,0,0,0,0,0,0,0]} 1. d4 {[%emt 0:00:05]} Nf6 {[%emt 0:00:14]} 2. c4 {[%emt 0:00:08]} g6 {[%emt 0:00:20]} 3. Nc3 {[%emt 0:00:08]} Bg7 {[%emt 0:00:08]} 4. e4 {[%emt 0:00:04]} d6 {[%emt 0:00:16]} 5. Nf3 {[%emt 0:00:15]} O-O {[%emt 0:00:16]} 6. Be2 {[%emt 0:00:06]} e5 {[%emt 0:00:10]} 7. O-O {[%emt 0:00:10]} b6 {[%emt 0:00:13] 7...h6 is the modern continuation. E94: King's Indian: Classical: 6 Be2 e5 7 0-0: Various Black 7th moves.} 8. Be3 {[%emt 0:07:33]} Nc6 {[%emt 0:01:46]} 9. d5 {[%emt 0:01:16]} Ne7 {[%emt 0:00:10]} 10. Nd2 {[%emt 0:07:32]} Ne8 {[%emt 0:02:00]} 11. b4 {[%emt 0:01:11]} c5 {[%emt 0:00:30]} 12. dxc6 {[%emt 0:04:42]} Nxc6 {[%emt 0:00:18]} 13. b5 {[%emt 0:04:12]} Nd4 {[%emt 0:00:31]} 14. Nb3 {[%emt 0:00:22]} Nxe2+ {[%emt 0:01:19]} 15. Qxe2 {[%emt 0:00:06]} Be6 $146 {[%emt 0:02:59]} ({Predecessor:} 15... f5 16. exf5 gxf5 17. f4 Be6 18. Rad1 Qc7 19. Nd5 Qf7 20. Bc1 Nf6 21. Ne3 Ne4 {0-1 Checa,N (2533)-Ali Marandi,C (2532) Saint Louis Summer-B 2022 (5)}) 16. a4 {[%emt 0:15:20]} Rc8 {[%emt 0:01:52]} 17. Nd5 {[%emt 0:01:46]} f5 {[%emt 0:00:54]} 18. f3 {[%emt 0:00:47]} Nf6 {[%emt 0:42:49]} 19. Bd2 {[%emt 0:02:51]} Rf7 {[%emt 0:06:02]} 20. Rac1 {[%emt 0:10:02]} Nh5 {[%emt 0:06:00]} 21. g3 {[%emt 0:02:31]} Qd7 {[%emt 0:04:37]} 22. a5 {[%emt 0:07:07]} Rcf8 {[%emt 0:04:05]} 23. exf5 {[%emt 0:06:57]} gxf5 {[%emt 0:05:15]} (23... Bxd5 {simplifies} 24. cxd5 Qxf5 25. axb6 axb6 26. Be3 Nf6) 24. axb6 {[%emt 0:00:34]} axb6 {[%emt 0:00:19]} 25. Nxb6 {[%emt 0:14:14]} (25. f4 {simplifies} Bxd5 26. cxd5 Nf6 27. Qc4) 25... Qb7 {[%emt 0:01:53]} 26. Qf2 {[%emt 0:00:59]} f4 {[%emt 0:03:50]} 27. g4 {[%emt 0:02:08]} e4 $1 {[%emt 0:01:53]} 28. fxe4 $2 {[%emt 0:04:35]} (28. gxh5 $11 {and White stays safe.} e3 29. Bxe3 fxe3 30. Qxe3) 28... Bxg4 $19 {[%emt 0:00:07]} 29. Nd5 {[%emt 0:00:35]} f3 {[%emt 0:02:24]} ({Better is} 29... Be5 $17 {Strongly threatening ...Rg7.} 30. Bc3 Bh3 31. Bxe5 dxe5) 30. Be3 $2 {[%emt 0:04:24]} ({Only move:} 30. Kh1 $1 $15) 30... Bh3 $19 {[%emt 0:01:27]} 31. Qh4 {[%emt 0:01:08]} Bxf1 {[%emt 0:00:17]} 32. Rxf1 {[%emt 0:01:29]} Nf6 {[%emt 0:00:38]} 33. Nd4 {[%emt 0:00:39]} Nxd5 {[%emt 0:01:43]} (33... Re8 $1 $19 {[%cal Re8e4] is more deadly.} 34. Nf5 Rxe4) 34. exd5 $17 {[%emt 0:00:02]} Rf6 {[%emt 0:00:36]} 35. Qe4 $2 {[%emt 0:01:15] [#]} (35. Kh1 $17) 35... Rg6+ $1 $19 {[%emt 0:05:37]} 36. Kh1 {[%emt 0:00:03]} Bxd4 {[%emt 0:00:05]} 37. Bxd4 {[%emt 0:00:21]} Qc8 {[%emt 0:01:35]} 38. Rg1 {[%emt 0:00:05]} Qe8 $2 {[%emt 0:00:08]} (38... Qxc4 39. Rxg6+ hxg6 40. Qxg6#) (38... Rxg1+ $19 39. Kxg1 Qh3 (39... Qxc4 40. Qg4+ Kf7 41. Qe6#) 40. Qe6+ Qxe6 41. dxe6 Rf4) 39. Qxe8 $17 {[%emt 0:01:28]} Rxe8 {[%emt 0:00:06]} 40. b6 {[%emt 0:00:00]} Kf7 {[%emt 0:00:00]} (40... Re2 $17) 41. Rb1 {[%emt 0:13:56] [#]} ({White should play} 41. Rf1 $15 Rg4 (41... Kg8 42. Rb1 $14) 42. Rxf3+ Kg8 43. Bf2 (43. Rg3 Rxg3 44. hxg3 Re1+ 45. Kg2 Rc1 $17) 43... Rxc4 44. Rb3) 41... Rg4 {[%emt 0:08:55]} (41... Rg2 $1 $17 {[%cal Rg2d2] aiming for ...Rd2.} 42. Rf1 Kg6 43. Rxf3 Rg4) 42. Bg1 $1 $15 {[%emt 0:05:06]} Rxc4 {[%emt 0:09:16]} 43. b7 {[%emt 0:00:47]} Rc2 {[%emt 0:00:36]} ({Don't go for} 43... Rb8 $2 44. Ba7 $18) 44. b8=Q {[%emt 0:03:55]} Rxb8 {[%emt 0:00:11]} 45. Rxb8 {[%emt 0:00:03]} f2 {[%emt 0:00:08]} 46. Bxf2 {[%emt 0:00:30]} (46. Rb7+ Kf6 47. Bxf2 Rxf2 48. Rxh7 Rf5) 46... Rxf2 {[%emt 0:00:06]} 47. Rd8 {[%emt 0:02:37]} Rf6 {[%emt 0:03:34]} 48. Kg2 {[%emt 0:00:14]} h5 {[%emt 0:01:54]} 49. Kg3 {[%emt 0:02:24]} Ke7 {[%emt 0:01:27]} 50. Rh8 {[%emt 0:00:20]} Rf5 {[%emt 0:00:04]} 51. Kh4 {[%emt 0:00:04]} Rxd5 {[%emt 0:00:06]} 52. Rxh5 {[%emt 0:00:04]} Rxh5+ {[%emt 0:00:11]} 1/2-1/2

[Event "Romanian Superliga 2024"]
[Site "Mamaia"]
[Date "2024.09.30"]
[Round "3.20"]
[White "Stoyanov, Tsvetan"]
[Black "Ogleznev, Alexandr"]
[Result "1/2-1/2"]
[ECO "B46"]
[WhiteElo "2471"]
[BlackElo "2301"]
[Annotator "TA"]
[PlyCount "52"]
[EventDate "2024.09.26"]
[EventType "team-tourn"]
[EventCountry "ROU"]
[SourceTitle "playchess.com"]
[Source "ChessBase"]
[SourceQuality "1"]
[TimeControl "40/5400+30:1800+30"]

{[%evp 13,52,31,48,38,41,30,46,54,51,52,56,4,14,13,4,0,0,0,0,-16,0,-20,0,-64,-38,-46,-57,-61,-63,-63,-63,-63,-63,-77,-59,-46,-46,-85,-30,-122,-62]} 1. e4 {[%emt 0:00:03]} c5 {[%emt 0:03:03]} 2. Nf3 {[%emt 0:00:06]} e6 {[%emt 0:00:04]} 3. d4 {[%emt 1:31:51]} cxd4 {[%emt 0:00:06]} 4. Nxd4 {[%emt 0:00:00]} a6 {[%emt 0:03:30]} 5. Nc3 {[%emt 0:00:00]} Qc7 {[%emt 0:00:08]} 6. Bd3 {[%emt 0:00:00]} Nc6 {[%emt 0:02:26]} 7. Nxc6 {[%emt 0:00:00]} bxc6 {[%emt 0:01:17]} 8. Qe2 {[%emt 0:00:00]} Bb7 {[%emt 0:17:54]} 9. O-O {[%emt 0:00:00]} d5 {[%emt 0:00:35]} 10. Bg5 {[%emt 0:00:00] White is slightly better.} Nf6 {[%emt 0:02:10]} 11. f4 {[%emt 0:00:00]} Be7 {[%emt 0:17:38]} 12. e5 {[%emt 0:00:00]} (12. Rae1 $14) 12... Ng8 $11 {[%emt 0:05:51]} 13. Na4 {[%emt 0:00:00]} c5 {[%emt 0:02:35] [#] Strongly threatening ...c4.} 14. c4 {[%emt 0:00:00]} d4 {[%emt 0:00:41]} 15. b3 {[%emt 0:00:00]} g6 {[%emt 0:03:45]} 16. Be4 {[%emt 0:00:00]} Rc8 {[%emt 0:01:12]} 17. Rab1 {[%emt 0:00:00]} a5 {[%emt 0:06:49]} 18. Nb2 {[%emt 0:00:00]} ({Better is} 18. Bxb7 $11 Qxb7 19. Bxe7 Nxe7 20. Qe1) 18... h6 {[%emt 0:05:08]} 19. Bxe7 {[%emt 0:00:00]} Nxe7 {[%emt 0:00:16]} 20. Nd3 {[%emt 0:00:00][%cal Od3c5]} Bxe4 {[%emt 0:04:12]} 21. Qxe4 {[%emt 0:00:00]} Nf5 {[%emt 0:01:14]} 22. Qe1 {[%emt 0:00:00]} h5 {[%emt 0:06:07]} 23. Rf3 {[%emt 0:00:00]} Kf8 {[%emt 0:00:17]} 24. Nf2 {[%emt 0:00:00]} Kg7 {[%emt 0:00:59][%cal Oa5a4]} 25. Ne4 {[%emt 0:00:00]} Ra8 {[%emt 0:01:53]} (25... Rb8 $17) 26. Ng3 {[%emt 0:02:11]} (26. a4 $11 {keeps the balance.}) 26... Nxg3 {[%emt 0:01:49] Weighted Error Value: White=0.21 (precise) /Black=0.09 (flawless) .  Mistake:       	White=3     	Black=2      Inaccurate:     	White=1     	Black=1      OK:         	White=6     	Black=6      Best:        	---       	Black=2} (26... a4 $17 27. Nxf5+ exf5) 1/2-1/2

[Event "Romanian Superliga 2024"]
[Site "Mamaia"]
[Date "2024.09.30"]
[Round "3.21"]
[White "Vavric, Pavel"]
[Black "Ghimpu, Samuel-Timotei"]
[Result "0-1"]
[ECO "B12"]
[WhiteElo "2285"]
[BlackElo "2456"]
[Annotator "TA"]
[PlyCount "46"]
[EventDate "2024.09.26"]
[EventType "team-tourn"]
[EventCountry "ROU"]
[SourceTitle "playchess.com"]
[Source "ChessBase"]
[SourceQuality "1"]
[TimeControl "40/5400+30:1800+30"]

{[%evp 9,46,0,1,-14,-6,0,20,13,31,19,10,14,2,-60,-50,-56,-47,-88,-37,-114,-112,-147,-80,-128,-152,-139,-127,-184,-201,-193,-189,-318,-309,-311,-235,-259,-160,-173,-177]} 1. e4 {[%emt 0:10:09]} c6 {[%emt 0:52:32]} 2. d4 {[%emt 0:00:30]} d5 {[%emt 0:00:30]} 3. e5 {[%emt 0:00:30]} c5 {[%emt 0:00:30]} 4. dxc5 {[%emt 0:00:30]} e6 {[%emt 0:00:30]} 5. a3 {[%emt 0:00:30]} Bxc5 {[%emt 0:00:30]} 6. b4 {[%emt 0:00:30]} Be7 {[%emt 0:00:30]} 7. Nf3 {[%emt 0:00:30]} a5 {[%emt 0:00:30]} 8. b5 {[%emt 0:00:30] The position is equal.} f6 {[%emt 0:00:30]} 9. Bb2 {[%emt 0:00:30]} Nd7 {[%emt 0:00:30]} 10. Bd3 {[%emt 0:00:30]} Nh6 {[%emt 0:00:30]} 11. O-O {[%emt 0:00:30]} (11. Nbd2 $11) 11... Nf7 $1 $15 {[%emt 0:00:30]} 12. exf6 {[%emt 0:00:30]} Bxf6 {[%emt 0:00:30]} 13. Nc3 {[%emt 0:00:30]} O-O {[%emt 0:00:30]} ({Black should try} 13... Nc5 $17) 14. Re1 {[%emt 0:00:30]} ({White should play} 14. Na4 $15) 14... Nb6 $17 {[%emt 0:00:30]} 15. Bf1 {[%emt 0:00:30]} Qc7 {[%emt 0:00:30]} (15... e5 $142 {White must now prevent ...Bg4.} 16. Nd2 e4) 16. Qd2 {[%emt 0:00:30]} (16. Qd3 $142) 16... Nd6 {[%emt 0:00:30]} 17. Nd1 {[%emt 0:00:30]} Ndc4 {[%emt 0:00:30]} 18. Qc1 {[%emt 0:00:30] [#]} (18. Bxc4 $17 Nxc4 19. Qc1 Nxb2 20. Nxb2) 18... Nxb2 $1 $19 {[%emt 0:00:30]} 19. Nxb2 {[%emt 0:00:30]} e5 {[%emt 0:00:30]} 20. c4 {[%emt 0:00:30]} (20. c3 {might work better.}) 20... e4 {[%emt 0:00:30]} 21. Nd2 {[%emt 0:00:30]} Bd4 {[%emt 0:00:30]} 22. Nd1 {[%emt 0:00:30]} Bxa1 {[%emt 0:00:30]} 23. Qxa1 {[%emt 0:00:30]} dxc4 {[%emt 0:00:30] Weighted Error Value: White=0.34/Black=0.23 (precise) .  Mistake:       	White=5     	Black=2      Inaccurate:     	White=2     	Black=1      OK:         	White=5     	Black=10     Strong:       	---       	Black=1} 0-1

[Event "Romanian Superliga 2024"]
[Site "Mamaia"]
[Date "2024.09.30"]
[Round "3.22"]
[White "Gheorghiu, Calin"]
[Black "Sachilaru, Alexandru"]
[Result "1/2-1/2"]
[ECO "B92"]
[WhiteElo "2313"]
[BlackElo "2265"]
[Annotator "RC"]
[PlyCount "84"]
[EventDate "2024.09.26"]
[EventType "team-tourn"]
[EventCountry "ROU"]
[SourceTitle "playchess.com"]
[Source "ChessBase"]
[SourceQuality "1"]
[TimeControl "40/5400+30:1800+30"]

1. e4 {[%emt 0:00:03]} c5 {[%emt 0:00:14]} 2. Nf3 {[%emt 0:00:03]} d6 {[%emt 0:00:17]} 3. d4 {[%emt 0:00:03]} cxd4 {[%emt 0:00:12]} 4. Nxd4 {[%emt 0:00:02]} Nf6 {[%emt 0:00:08]} 5. Nc3 {[%emt 0:00:01]} a6 {[%emt 0:00:14]} 6. Be2 {[%emt 0:00:02]} e5 {[%emt 0:01:03]} 7. Nb3 {[%emt 0:00:04]} Be7 {[%emt 0:01:49]} 8. O-O {[%emt 0:00:03]} O-O {[%emt 0:00:27]} 9. Re1 {[%emt 0:00:02]} Be6 {[%emt 0:00:56]} 10. Bf3 {[%emt 0:00:02]} Nbd7 {[%emt 0:00:35]} 11. a4 {[%emt 0:00:15]} Qc7 {[%emt 0:01:04]} 12. Nd2 {[%emt 0:00:59]} Rab8 {[%emt 0:12:34]} 13. a5 {[%emt 0:00:32]} Rfc8 {[%emt 0:04:02]} 14. Nf1 {[%emt 0:02:08]} b5 {[%emt 0:06:08]} 15. axb6 {[%emt 0:00:07]} Qxb6 {[%emt 0:01:02]} 16. Ne3 {[%emt 0:05:58]} Qb7 {[%emt 0:04:24]} 17. Nf5 {[%emt 0:04:57]} Bxf5 {[%emt 0:05:53]} 18. exf5 {[%emt 0:00:09]} Qb6 {[%emt 0:01:10]} 19. Nd5 {[%emt 0:16:24]} Nxd5 {[%emt 0:02:22]} 20. Bxd5 {[%emt 0:00:09]} Nf6 {[%emt 0:03:33]} 21. Bb3 {[%emt 0:01:42]} Qc6 {[%emt 0:09:39]} 22. Bg5 {[%emt 0:05:40]} Rb4 {[%emt 0:03:54]} 23. Bxf6 {[%emt 0:09:01]} Bxf6 {[%emt 0:00:20]} 24. Qe2 {[%emt 0:08:46]} Rb6 {[%emt 0:05:50]} 25. Ra4 {[%emt 0:03:05]} d5 {[%emt 0:02:44]} 26. Rea1 {[%emt 0:00:57]} e4 {[%emt 0:04:49]} 27. Rxa6 {[%emt 0:03:45]} Bxb2 {[%emt 0:08:12]} 28. Rxb6 {[%emt 0:00:30]} Qxb6 {[%emt 0:00:03]} 29. Rd1 {[%emt 0:00:10]} Re8 {[%emt 0:07:33]} 30. Bxd5 {[%emt 0:05:15]} e3 {[%emt 0:01:12]} 31. Kh1 {[%emt 0:00:59]} Bf6 {[%emt 0:04:04]} 32. Bb3 {[%emt 0:03:55]} Qa5 {[%emt 0:02:57]} 33. Qc4 {[%emt 0:05:06]} Rf8 {[%emt 0:00:49]} 34. fxe3 {[%emt 0:01:33]} Qxf5 {[%emt 0:00:07]} 35. Qf4 {[%emt 0:05:56]} Qh5 {[%emt 0:03:05]} 36. g4 {[%emt 0:01:41]} Qh4 {[%emt 0:01:33]} 37. Rd7 {[%emt 0:01:33]} h5 {[%emt 0:02:10]} 38. gxh5 {[%emt 0:11:21]} Qe1+ {[%emt 0:00:32]} 39. Kg2 {[%emt 0:00:10]} Qe2+ {[%emt 0:00:10]} 40. Kg1 {[%emt 0:00:00]} Qe1+ {[%emt 0:00:00]} 41. Kg2 {[%emt 0:01:39]} Qe2+ {[%emt 0:00:16]} 42. Kg1 {[%emt 0:00:01]} Qe1+ {[%emt 0:00:05]} 1/2-1/2